bitfinex/quotes_SOLUSD_20241123
["timestamp","ask_amount","ask_price","bid_price","bid_amount"]
[1732374622479,10.0,261.45,261.36,4.3272049]
[1732374622877,9.5,261.46,261.36,4.3272049]
[1732374623181,10.0,261.45,261.36,4.3272049]
[1732374623381,9.5,261.46,261.37,20.0]
[1732374623572,10.0,261.45,261.37,20.0]
[1732374623970,10.0,261.45,261.38,4.93412699]
[1732374625075,10.0,261.45,261.39,20.0]
[1732374625471,10.0,261.45,261.39,24.93412699]
[1732374625766,10.0,261.45,261.39,4.93412699]
[1732374626156,10.0,261.43,261.38,20.0]
[1732374626672,10.0,261.43,261.34,20.0]
[1732374626868,10.0,261.43,261.32,20.0]
[1732374627078,10.0,261.41,261.34,4.3272049]
[1732374627263,10.0,261.43,261.34,9.26133189]
[1732374627459,9.5,261.43,261.35,4.93412699]
[1732374627782,19.5,261.45,261.35,9.26133189]
[1732374627961,9.5,261.45,261.35,9.26133189]
[1732374628475,9.5,261.45,261.36,20.0]
[1732374628662,9.5,261.45,261.37,9.26133189]
[1732374628864,19.5,261.45,261.38,20.0]
[1732374629064,10.0,261.45,261.4,20.0]
[1732374629285,9.5,261.43,261.4,24.93412699]
[1732374629458,9.5,261.43,261.4,29.26133189]
[1732374629873,9.5,261.42,261.41,4.93412699]
[1732374630475,19.5,261.42,261.4,4.3272049]
[1732374630667,19.5,261.42,261.31,53.5056804]
[1732374630668,9.5,261.38,261.31,45.9406]
[1732374630879,9.5,261.4,261.31,45.9406]
[1732374631188,9.5,261.38,261.31,45.9406]
[1732374631872,9.5,261.38,261.32,20.0]
[1732374632673,9.5,261.38,261.31,45.9406]
[1732374632879,10.0,261.39,261.31,45.9406]
[1732374632880,9.5,261.36,261.31,45.9406]
[1732374633480,10.0,261.37,261.31,45.9406]
[1732374633787,9.5,261.35,261.31,45.9406]
[1732374633979,10.0,261.35,261.31,33.2678]
[1732374634188,9.5,261.34,261.31,33.2678]
[1732374634374,10.0,261.31,261.28,4.3272049]
[1732374634686,9.5,261.3,261.25,44.321]
[1732374635771,9.5,261.3,261.22,4.93412699]
[1732374635985,19.5,261.28,261.21,4.3272049]
[1732374636182,9.5,261.23,261.18,31.4962]
[1732374636379,10.0,261.26,261.18,31.4962]
[1732374636683,9.5,261.27,261.18,31.4962]
[1732374636885,10.0,261.25,261.19,4.93412699]
[1732374637086,9.5,261.24,261.19,4.93412699]
[1732374637466,10.0,261.25,261.19,4.93412699]
[1732374637785,9.5,261.26,261.19,4.93412699]
[1732374637960,9.5,261.28,261.19,4.93412699]
[1732374638164,9.5,261.24,261.19,4.93412699]
[1732374638363,10.0,261.27,261.19,4.93412699]
[1732374638364,9.5,261.27,261.19,4.93412699]
[1732374638587,9.5,261.24,261.19,4.93412699]
[1732374638783,19.5,261.27,261.19,4.93412699]
[1732374639094,9.5,261.24,261.19,4.93412699]
[1732374640286,9.5,261.29,261.19,9.02299856]
[1732374640473,9.5,261.31,261.21,23.776884]
[1732374640787,9.5,261.31,261.15,31.4962]
[1732374640788,9.5,261.32,261.25,23.776884]
[1732374641090,10.0,261.33,261.26,20.0]
[1732374641296,9.5,261.3,261.26,20.0]
[1732374641591,9.5,261.3,261.25,4.35609379]
[1732374642684,9.5,261.34,261.28,20.0]
[1732374642867,9.5,261.36,261.29,4.60887157]
[1732374643065,9.5,261.38,261.29,4.60887157]
[1732374643693,19.5,261.4,261.31,20.0]
[1732374643863,9.5,261.33,261.3,23.776884]
[1732374644062,9.5,261.31,261.21,20.0]
[1732374644264,10.0,261.3,261.21,20.0]
[1732374644489,9.5,261.29,261.21,20.0]
[1732374644695,9.5,261.31,261.21,20.0]
[1732374644866,9.5,261.29,261.21,20.0]
[1732374645189,9.5,261.31,261.21,20.0]
[1732374645998,9.5,261.31,261.23,20.0]
[1732374646173,9.5,261.31,261.24,23.776884]
[1732374646498,9.5,261.31,261.25,20.0]
[1732374647175,19.5,261.31,261.21,20.0]
[1732374647366,9.5,261.29,261.22,23.776884]
[1732374647566,9.5,261.29,261.23,20.0]
[1732374648772,10.0,261.31,261.23,20.0]
[1732374648980,9.5,261.3,261.23,20.0]
[1732374649872,10.0,261.31,261.23,20.0]
[1732374650080,9.5,261.3,261.23,20.0]
[1732374650468,9.5,261.32,261.23,20.0]
[1732374651179,9.5,261.3,261.24,4.66690476]
[1732374651969,9.5,261.29,261.24,4.66690476]
[1732374652570,9.5,261.29,261.24,9.01996522]
[1732374652771,9.5,261.29,261.25,20.0]
[1732374652981,19.5,261.33,261.26,4.66690476]
[1732374653274,9.5,261.29,261.26,4.66690476]
[1732374653475,19.5,261.33,261.26,4.66690476]
[1732374653675,9.5,261.31,261.26,4.66690476]
[1732374653893,9.5,261.28,261.26,4.66690476]
[1732374654483,9.5,261.28,261.26,9.04163189]
[1732374654790,9.5,261.28,261.27,20.0]
[1732374654993,9.5,261.32,261.27,24.66690476]
[1732374655170,9.5,261.29,261.26,4.37472713]
[1732374655371,9.5,261.31,261.27,4.38194935]
[1732374655566,10.0,261.33,261.27,4.38194935]
[1732374655567,9.5,261.28,261.27,4.38194935]
[1732374655788,9.5,261.32,261.27,4.38194935]
[1732374656097,9.5,261.28,261.27,4.38194935]
[1732374656696,9.5,261.32,261.27,4.38194935]
[1732374656994,9.5,261.28,261.27,4.38194935]
[1732374657196,9.5,261.32,261.23,20.0]
[1732374657401,9.5,261.28,261.23,20.0]
[1732374658091,9.5,261.28,261.21,20.0]
[1732374658593,9.5,261.31,261.21,20.0]
[1732374658783,9.5,261.3,261.21,24.66690476]
[1732374659100,9.5,261.32,261.22,4.66690476]
[1732374659275,9.5,261.29,261.22,4.66690476]
[1732374659690,9.5,261.31,261.24,20.0]
[1732374660274,9.5,261.33,261.26,20.0]
[1732374661076,9.5,261.33,261.28,20.0]
[1732374661293,9.5,261.35,261.3,20.0]
[1732374661498,9.5,261.35,261.31,5.14410324]
[1732374661890,9.5,261.33,261.31,5.14410324]
[1732374666290,9.5,261.33,261.32,23.776884]
[1732374666594,9.5,261.33,261.31,5.14410324]
[1732374666800,9.5,261.33,261.32,5.27121435]
[1732374667601,9.5,261.39,261.33,20.0]
[1732374667790,9.5,261.39,261.35,20.0]
[1732374667995,9.5,261.43,261.39,20.0]
[1732374668183,9.5,261.4,261.39,20.0]
[1732374668378,9.5,261.4,261.39,43.776884]
[1732374668779,10.0,261.45,261.39,43.776884]
[1732374668780,9.5,261.43,261.39,43.776884]
[1732374669007,19.5,261.45,261.39,43.776884]
[1732374669227,9.5,261.45,261.41,20.0]
[1732374669510,9.5,261.4,261.34,32.6372]
[1732374669710,9.5,261.4,261.35,20.0]
[1732374670890,9.5,261.4,261.36,23.776884]
[1732374671091,9.5,261.4,261.37,20.0]
[1732374671307,9.5,261.4,261.38,23.776884]
[1732374671891,19.5,261.42,261.38,23.776884]
[1732374672199,9.5,261.42,261.38,23.776884]
[1732374672393,9.5,261.4,261.38,23.776884]
[1732374672596,9.5,261.42,261.39,43.776884]
[1732374673106,9.5,261.42,261.4,23.776884]
[1732374679423,9.5,261.44,261.41,20.0]
[1732374679717,9.5,261.45,261.41,20.0]
[1732374680035,9.5,261.43,261.42,23.776884]
[1732374680197,9.5,261.45,261.42,43.776884]
[1732374680702,19.5,261.45,261.43,20.0]
[1732374683525,19.5,261.45,261.42,23.776884]
[1732374683725,9.5,261.43,261.42,23.776884]
[1732374684028,19.5,261.43,261.42,23.776884]
[1732374685819,9.5,261.43,261.42,43.776884]
[1732374686512,19.5,261.45,261.42,43.776884]
[1732374686719,9.5,261.43,261.42,43.776884]
[1732374687017,19.5,261.45,261.42,43.776884]
[1732374687221,9.5,261.43,261.42,43.776884]
[1732374688399,9.5,261.45,261.42,43.776884]
[1732374688595,9.5,261.45,261.43,20.0]
[1732374689106,10.0,261.47,261.42,23.776884]
[1732374689107,9.5,261.43,261.42,23.776884]
[1732374689424,19.5,261.43,261.42,20.0]
[1732374689922,19.5,261.43,261.33,20.0]
[1732374690124,9.5,261.41,261.37,20.0]
[1732374690628,9.5,261.41,261.39,20.0]
[1732374690821,19.5,261.43,261.4,43.776884]
[1732374691000,9.5,261.41,261.4,43.776884]
[1732374691924,10.0,261.43,261.4,43.776884]
[1732374692118,19.5,261.43,261.41,20.0]
[1732374692338,9.5,261.43,261.41,20.0]
[1732374692516,9.5,261.45,261.42,43.776884]
[1732374692721,9.5,261.45,261.42,23.776884]
[1732374692929,9.5,261.43,261.42,43.776884]
[1732374693118,9.5,261.45,261.42,43.776884]
[1732374693315,9.5,261.45,261.43,14.0]
[1732374694839,9.5,261.45,261.44,23.776884]
[1732374695315,9.5,261.47,261.45,20.0]
[1732374699518,9.5,261.47,261.41,23.776884]
[1732374699719,9.5,261.45,261.44,20.0]
[1732374702241,19.5,261.49,261.44,20.0]
[1732374702425,9.5,261.45,261.44,20.0]
[1732374703128,9.5,261.45,261.44,43.776884]
[1732374703940,9.5,261.46,261.44,43.776884]
[1732374704150,9.5,261.47,261.44,43.776884]
[1732374704329,19.5,261.49,261.45,23.776884]
[1732374704537,9.5,261.49,261.46,20.0]
[1732374704853,9.5,261.49,261.47,23.776884]
[1732374705024,9.5,261.49,261.48,20.0]
[1732374705223,9.5,261.51,261.48,43.776884]
[1732374705544,9.5,261.49,261.48,43.776884]
[1732374706126,9.5,261.5,261.49,23.776884]
[1732374706329,9.5,261.71,261.57,43.776884]
[1732374706540,9.5,261.69,261.58,12.05150264]
[1732374706745,9.5,261.69,261.59,43.776884]
[1732374706944,9.5,261.69,261.61,43.776884]
[1732374707128,9.5,261.69,261.62,6.2218201]
[1732374707447,9.5,261.71,261.63,43.776884]
[1732374707621,9.5,261.69,261.64,6.18609177]
[1732374707816,9.5,261.69,261.65,49.38989987]
[1732374708037,9.5,261.69,261.66,6.18609177]
[1732374708239,9.5,261.69,261.68,43.776884]
[1732374708448,9.5,261.69,261.68,55.57599164]
[1732374709121,9.5,261.71,261.69,20.0]
[1732374709323,9.5,261.71,261.7,35.33543386]
[1732374709529,9.5,261.71,261.7,31.55854986]
[1732374709724,9.5,261.71,261.7,25.94553399]
[1732374709933,21.3892,261.84,261.64,8.5516]
[1732374709934,9.5,261.67,261.64,20.0]
[1732374710146,9.5,261.65,261.64,20.0]
[1732374710451,9.5,261.65,261.63,5.94553399]
[1732374710824,21.3892,261.84,261.49,12.9949083]
[1732374710825,9.5,261.61,261.51,21.1882]
[1732374711149,9.5,261.61,261.52,11.55854986]
[1732374711650,10.0,261.58,261.51,21.1882]
[1732374711945,9.5,261.56,261.53,5.94553399]
[1732374712129,9.5,261.58,261.53,5.94553399]
[1732374712333,9.5,261.61,261.53,11.55854986]
[1732374712541,9.5,261.61,261.54,5.61301587]
[1732374712848,9.5,261.61,261.55,5.84788955]
[1732374713026,9.5,261.61,261.56,25.61301587]
[1732374713343,9.5,261.61,261.57,5.84788955]
[1732374713724,9.5,261.61,261.58,20.0]
[1732374713920,9.5,261.61,261.6,20.0]
[1732374714224,23.91669771,261.95,261.94,113.65905258]
[1732374714420,11.95834885,262.08,261.95,20.0]
[1732374714722,4.7258332,262.22,261.95,20.0]
[1732374714723,10.0,262.09,261.97,20.0]
[1732374714919,29.328,262.21,262.06,11.88433005]
[1732374715149,21.3892,262.21,262.12,11.88433005]
[1732374715334,21.3892,262.21,262.18,11.88433005]
[1732374715526,10.0,262.23,262.19,14.46972489]
[1732374715842,10.0,262.23,262.2,2.58539484]
[1732374716049,10.0,262.22,262.16,23.76866011]
[1732374716234,20.0,262.27,262.16,23.76866011]
[1732374716435,20.0,262.27,262.12,5.86165869]
[1732374716625,10.0,262.25,262.12,5.86165869]
[1732374716832,20.0,262.27,262.11,5.86165869]
[1732374717030,10.0,262.22,262.09,5.86165869]
[1732374717228,10.0,262.22,262.1,5.86165869]
[1732374717732,20.0,262.27,262.11,5.86165869]
[1732374719147,20.0,262.27,262.12,5.86165869]
[1732374719532,23.776884,262.26,262.12,5.86165869]
[1732374720050,23.776884,262.26,262.13,5.86165869]
[1732374720249,10.0,262.29,262.13,20.0]
[1732374720434,10.0,262.27,262.13,20.0]
[1732374720640,10.0,262.29,262.13,25.86165869]
[1732374721652,7.9388,262.3,262.13,25.86165869]
[1732374721954,23.776884,262.29,262.13,25.86165869]
[1732374722464,23.776884,262.29,262.14,5.86165869]
[1732374723138,23.776884,262.29,262.13,20.0]
[1732374723339,23.776884,262.29,262.13,25.86165869]
[1732374723933,7.8378,262.38,262.17,5.86165869]
[1732374724135,7.8378,262.38,262.07,20.0]
[1732374724136,7.8378,262.38,262.2,20.0]
[1732374724358,10.0,262.4,262.23,20.0]
[1732374724534,20.0,262.45,262.23,20.0]
[1732374724851,10.0,262.44,262.23,25.86165869]
[1732374725033,10.0,262.42,262.21,20.0]
[1732374725232,10.0,262.42,262.2,5.86165869]
[1732374725233,10.0,262.45,262.19,20.0]
[1732374725656,10.0,262.45,262.23,20.0]
[1732374725962,7.8378,262.46,262.25,20.0]
[1732374726254,10.0,262.44,262.22,5.86165869]
[1732374726435,10.0,262.44,262.23,20.0]
[1732374726630,7.8378,262.46,262.23,20.0]
[1732374726851,10.0,262.44,262.23,20.0]
[1732374727054,10.0,262.45,262.23,20.0]
[1732374727261,10.0,262.36,262.2,5.86165869]
[1732374727469,10.0,262.39,262.22,10.0]
[1732374727665,10.0,262.41,262.22,10.0]
[1732374728336,23.776884,262.42,262.25,10.0]
[1732374728541,23.776884,262.43,262.25,10.0]
[1732374728747,23.776884,262.43,262.24,20.0]
[1732374728951,23.776884,262.43,262.25,10.0]
[1732374729855,33.776884,262.43,262.2,20.0]
[1732374730031,33.776884,262.43,262.25,10.0]
[1732374730560,23.776884,262.42,262.25,10.0]
[1732374730852,23.776884,262.42,262.23,2.64669209]
[1732374731057,23.776884,262.42,262.2,20.0]
[1732374731058,23.776884,262.42,262.25,12.64669209]
[1732374731261,7.35330791,262.4,262.21,2.64669209]
[1732374731572,7.35330791,262.38,262.19,8.1053]
[1732374731857,7.35330791,262.38,262.19,10.75199209]
[1732374732591,23.776884,262.37,262.19,10.75199209]
[1732374733263,135.5,262.41,262.19,10.75199209]
[1732374733264,23.776884,262.39,262.19,10.75199209]
[1732374733578,23.776884,262.37,262.19,10.75199209]
[1732374735255,23.776884,262.35,262.18,2.64669209]
[1732374735456,23.776884,262.35,262.14,12.64669209]
[1732374735457,7.35330791,262.34,262.14,12.64669209]
[1732374735637,23.776884,262.33,262.15,20.0]
[1732374735840,23.776884,262.33,262.16,2.64669209]
[1732374736052,23.776884,262.33,262.16,12.64669209]
[1732374736253,23.776884,262.33,262.15,20.0]
[1732374736441,23.776884,262.33,262.14,12.64669209]
[1732374736442,7.35330791,262.31,262.14,10.0]
[1732374736758,23.776884,262.33,262.14,10.0]
[1732374736759,23.776884,262.3,262.14,10.0]
[1732374736952,142.85330791,262.33,262.14,10.0]
[1732374736953,23.776884,262.32,262.14,10.0]
[1732374737348,23.776884,262.32,262.15,12.64669209]
[1732374737755,23.776884,262.32,262.14,10.0]
[1732374738067,23.776884,262.3,262.12,22.64669209]
[1732374739168,23.776884,262.3,262.12,2.64669209]
[1732374739663,23.776884,262.3,262.11,20.0]
[1732374739842,23.776884,262.3,262.12,2.64669209]
[1732374740040,23.776884,262.3,262.13,20.0]
[1732374740244,23.776884,262.32,262.14,12.64669209]
[1732374740567,23.776884,262.32,262.13,20.0]
[1732374740877,23.776884,262.29,262.1,20.79129209]
[1732374741164,23.776884,262.29,262.1,10.79129209]
[1732374741575,23.776884,262.27,262.11,10.0]
[1732374741753,23.776884,262.27,262.12,2.64669209]
[1732374742062,23.776884,262.29,262.12,2.64669209]
[1732374743443,7.35330791,262.38,262.2,2.64669209]
[1732374743640,27.261,262.37,262.2,2.64669209]
[1732374744065,27.261,262.37,262.18,22.64669209]
[1732374744562,27.261,262.37,262.2,2.64669209]
[1732374744977,23.776884,262.36,262.18,20.0]
[1732374746061,27.261,262.37,262.17,2.64669209]
[1732374746062,27.261,262.37,262.21,12.64669209]
[1732374746248,27.261,262.37,262.21,2.64669209]
[1732374746644,27.261,262.37,262.21,12.64669209]
[1732374747065,27.261,262.37,262.21,10.0]
[1732374747293,23.776884,262.36,262.21,12.64669209]
[1732374747617,23.776884,262.36,262.21,10.0]
[1732374747758,23.776884,262.36,262.21,12.64669209]
[1732374748270,23.776884,262.36,262.19,2.64669209]
[1732374749170,23.776884,262.36,262.21,10.0]
[1732374749669,23.776884,262.36,262.21,12.64669209]
[1732374750267,135.5,262.41,262.25,2.64669209]
[1732374750568,7.35330791,262.44,262.26,20.9846]
[1732374750756,7.35330791,262.44,262.26,30.9846]
[1732374750959,7.35330791,262.46,262.26,30.9846]
[1732374751172,7.35330791,262.44,262.26,30.9846]
[1732374751471,7.35330791,262.41,262.22,20.73189209]
[1732374751648,23.776884,262.4,262.22,20.73189209]
[1732374752069,23.776884,262.41,262.24,10.0]
[1732374752252,23.776884,262.41,262.24,2.64669209]
[1732374753572,23.776884,262.41,262.26,10.0]
[1732374753772,23.776884,262.41,262.24,2.64669209]
[1732374754165,23.776884,262.41,262.26,10.0]
[1732374754366,23.776884,262.41,262.24,10.0]
[1732374754579,31.13019191,262.41,262.24,10.0]
[1732374755273,7.35330791,262.39,262.22,8.0852]
[1732374755581,23.776884,262.38,262.22,8.0852]
[1732374756454,7.35330791,262.35,262.16,20.73189209]
[1732374756773,31.583184,262.38,262.16,18.0852]
[1732374756774,7.35330791,262.33,262.16,18.0852]
[1732374756956,23.776884,262.32,262.16,18.0852]
[1732374757475,23.776884,262.32,262.16,8.0852]
[1732374760453,23.776884,262.32,262.14,2.64669209]
[1732374760652,23.776884,262.32,261.98,10.0]
[1732374760653,20.0,262.22,262.06,2.64669209]
[1732374760857,23.776884,262.19,262.03,20.9846]
[1732374761070,23.776884,262.19,261.99,8.0852]
[1732374761373,23.776884,262.19,262.02,2.64669209]
[1732374761553,23.776884,262.19,262.02,12.64669209]
[1732374762667,23.776884,262.2,262.06,2.64669209]
[1732374763161,43.776884,262.23,262.08,2.64669209]
[1732374763359,20.0,262.23,262.08,2.64669209]
[1732374763559,20.0,262.25,262.08,2.64669209]
[1732374764450,23.776884,262.24,262.08,2.64669209]
[1732374764662,20.0,262.23,262.08,2.64669209]
[1732374765381,20.0,262.21,262.08,2.64669209]
[1732374766085,23.776884,262.22,262.08,2.64669209]
[1732374766257,23.776884,262.23,262.08,2.64669209]
[1732374766584,43.776884,262.2,262.04,2.64669209]
[1732374766879,43.776884,262.2,262.04,12.64669209]
[1732374768765,43.776884,262.2,262.04,2.64669209]
[1732374768977,43.776884,262.2,262.04,12.64669209]
[1732374769189,43.776884,262.2,262.04,2.64669209]
[1732374769471,43.776884,262.2,262.04,12.64669209]
[1732374770976,23.776884,262.2,262.06,2.64669209]
[1732374772154,23.776884,262.2,262.06,12.64669209]
[1732374772675,23.776884,262.2,262.06,2.64669209]
[1732374772988,23.776884,262.2,262.06,12.64669209]
[1732374774089,23.776884,262.2,262.04,2.64669209]
[1732374774391,31.13019191,262.21,262.04,2.64669209]
[1732374774588,23.776884,262.21,262.07,10.0]
[1732374774758,23.776884,262.21,262.04,2.64669209]
[1732374774957,23.776884,262.23,262.07,10.0]
[1732374775767,23.776884,262.23,262.09,12.64669209]
[1732374776773,23.776884,262.23,262.09,2.64669209]
[1732374776978,23.776884,262.23,262.09,12.64669209]
[1732374777473,23.776884,262.23,262.06,20.0]
[1732374777781,23.776884,262.23,262.06,22.64669209]
[1732374778079,23.776884,262.21,262.06,10.0]
[1732374779064,23.776884,262.19,262.03,12.64669209]
[1732374779262,20.0,262.18,262.03,2.64669209]
[1732374779587,27.35330791,262.16,261.99,8.0852]
[1732374779797,23.776884,262.15,261.99,8.0852]
[1732374779963,23.776884,262.15,262.0,10.0]
[1732374780574,23.776884,262.15,262.0,2.64669209]
[1732374780787,23.776884,262.15,262.02,10.0]
[1732374781664,23.776884,262.17,261.99,8.0852]
[1732374781877,23.776884,262.15,262.02,10.0]
[1732374782456,142.85330791,262.22,262.02,10.0]
[1732374782658,20.0,262.21,262.03,2.64669209]
[1732374783280,20.0,262.21,262.03,12.64669209]
[1732374783475,20.0,262.21,262.03,2.64669209]
[1732374783685,20.0,262.21,262.03,12.64669209]
[1732374783986,23.776884,262.18,262.03,12.64669209]
[1732374784186,7.35330791,262.17,261.99,18.0852]
[1732374784396,7.35330791,262.17,262.0,2.64669209]
[1732374784397,20.0,262.17,262.0,2.64669209]
[1732374784608,23.776884,262.16,262.0,2.64669209]
[1732374784769,23.776884,262.16,262.01,2.64669209]
[1732374785116,7.35330791,262.13,261.99,8.0852]
[1732374785295,23.776884,262.12,261.99,8.0852]
[1732374785582,23.776884,262.1,261.99,8.0852]
[1732374786293,146.9,262.21,261.99,8.0852]
[1732374786294,23.776884,262.12,261.99,8.0852]
[1732374786470,7.35330791,262.11,261.97,20.9846]
[1732374786786,23.776884,262.1,261.94,10.0]
[1732374786969,23.776884,262.1,261.92,8.4914]
[1732374786970,23.776884,262.11,261.96,10.0]
[1732374789178,23.776884,262.11,261.95,2.64669209]
[1732374789476,23.776884,262.11,261.96,10.0]
[1732374790495,23.776884,262.11,261.95,2.64669209]
[1732374790694,23.776884,262.11,261.96,10.0]
[1732374790867,23.776884,262.11,261.95,2.64669209]
[1732374791068,8.9337,262.18,261.99,22.64669209]
[1732374791289,22.2856,262.19,262.04,2.64669209]
[1732374791488,22.2856,262.19,262.03,22.0519]
[1732374791798,22.2856,262.19,262.04,10.0]
[1732374792374,20.0,262.18,262.04,10.0]
[1732374792572,20.0,262.18,262.03,22.0519]
[1732374792781,20.0,262.18,262.04,10.0]
[1732374792997,20.0,262.16,262.04,10.0]
[1732374793191,23.776884,262.15,262.04,10.0]
[1732374793488,23.776884,262.15,262.03,22.0519]
[1732374793706,20.0,262.14,262.03,22.0519]
[1732374793996,23.776884,262.13,262.03,22.0519]
[1732374795182,23.776884,262.13,262.0,2.64669209]
[1732374795381,23.776884,262.13,261.98,10.0]
[1732374795582,23.776884,262.13,261.97,2.64669209]
[1732374795991,23.776884,262.13,262.02,10.0]
[1732374796170,23.776884,262.13,261.97,12.64669209]
[1732374796790,23.776884,262.15,261.97,12.64669209]
[1732374796972,20.0,262.14,261.97,12.64669209]
[1732374797172,23.776884,262.13,261.97,12.64669209]
[1732374798182,23.776884,262.15,261.97,12.64669209]
[1732374799002,23.776884,262.13,262.01,10.0]
[1732374799206,23.776884,262.13,261.97,10.0]
[1732374799412,20.0,262.12,261.96,10.0]
[1732374799699,20.0,262.12,261.92,8.4914]
[1732374799700,23.776884,262.09,261.92,8.4914]
[1732374799904,23.776884,262.1,261.92,8.4914]
[1732374800195,20.0,262.18,262.01,12.64669209]
[1732374800994,20.0,262.18,262.01,10.0]
[1732374801297,20.0,262.18,262.0,29.7962]
[1732374801604,23.776884,262.15,262.01,12.64669209]
[1732374802586,23.776884,262.15,262.01,10.0]
[1732374803094,23.776884,262.17,262.0,29.7962]
[1732374803803,23.776884,262.17,262.01,10.0]
[1732374804279,23.776884,262.15,262.0,29.7962]
[1732374804682,20.0,262.14,262.0,29.7962]
[1732374804985,142.85330791,262.16,262.0,29.7962]
[1732374804986,23.776884,262.11,262.0,29.7962]
[1732374805186,23.776884,262.09,262.0,29.7962]
[1732374806577,11.91730725,262.24,262.05,10.0]
[1732374806578,12.15690417,262.19,262.05,10.0]
[1732374806902,12.15690417,262.19,262.05,12.64669209]
[1732374807101,12.15690417,262.19,262.07,10.0]
[1732374807288,12.15690417,262.19,262.07,2.64669209]
[1732374807495,135.5,262.28,262.13,10.0]
[1732374807701,8.2496,262.3,262.13,32.8836]
[1732374808000,15.87277192,262.3,262.13,43.97369209]
[1732374808893,8.2496,262.3,262.13,43.97369209]
[1732374809207,142.85330791,262.31,262.15,10.0]
[1732374809509,23.776884,262.3,262.15,10.0]
[1732374810707,23.776884,262.28,262.15,10.0]
[1732374811005,20.0,262.27,262.15,10.0]
[1732374811203,23.776884,262.26,262.15,10.0]
[1732374811385,22.7603,262.33,262.13,33.97369209]
[1732374811386,135.5,262.38,262.2,10.0]
[1732374811594,7.35330791,262.38,262.2,10.0]
[1732374812187,135.5,262.39,262.2,10.0]
[1732374812501,7.35330791,262.38,262.2,10.0]
[1732374812702,23.776884,262.36,262.2,10.0]
[1732374812885,20.0,262.35,262.2,10.0]
[1732374813204,20.0,262.35,262.13,31.327]
[1732374813205,20.0,262.31,262.18,10.0]
[1732374813382,23.776884,262.32,262.16,10.0]
[1732374813383,23.776884,262.28,262.16,10.0]
[1732374815194,23.776884,262.28,262.17,10.0]
[1732374816006,43.776884,262.31,262.2,10.0]
[1732374816788,23.776884,262.31,262.22,10.0]
[1732374817611,23.776884,262.39,262.22,10.0]
[1732374817816,159.276884,262.39,262.22,10.0]
[1732374818704,23.776884,262.37,262.22,10.0]
[1732374819002,20.0,262.34,262.22,10.0]
[1732374819204,20.0,262.34,262.24,10.0]
[1732374819413,15.231001,262.42,262.27,10.0]
[1732374819592,7.49019814,262.43,262.27,10.0]
[1732374819791,135.5,262.45,262.27,10.0]
[1732374819987,150.731825,262.44,262.27,10.0]
[1732374820188,15.231825,262.44,262.27,10.0]
[1732374821611,20.0,262.43,262.25,21.69739209]
[1732374821987,20.0,262.41,262.25,21.69739209]
[1732374822184,23.776884,262.4,262.25,21.69739209]
[1732374822709,23.776884,262.38,262.25,21.69739209]
[1732374822901,20.0,262.37,262.25,21.69739209]
[1732374823212,20.0,262.35,262.25,21.69739209]